bitfinex/quotes_SOLUSD_20250616
["timestamp","ask_amount","ask_price","bid_price","bid_amount"]
[1750069083539,32.24724485,157.15,157.14,262.88807453]
[1750069085036,32.24724485,157.15,157.14,236.74807453]
[1750069087668,32.24724485,157.15,157.14,262.88807453]
[1750069088241,6.24724485,157.15,157.14,269.25182659]
[1750069088958,6.24724485,157.15,157.14,269.53614973]
[1750069089269,32.24724485,157.16,157.14,269.53614973]
[1750069091061,6.24724485,157.15,157.14,269.53614973]
[1750069093370,26.0,157.16,157.14,269.53614973]
[1750069093574,6.24724485,157.15,157.14,269.53614973]
[1750069109276,26.0,157.16,157.14,269.53614973]
[1750069109585,6.24724485,157.15,157.14,243.39614973]
[1750069109778,6.24724485,157.15,157.14,288.08579859]
[1750069115583,26.0,157.16,157.15,0.28432314]
[1750069115883,26.0,157.16,157.15,26.32432314]
[1750069115884,32.24724485,157.16,157.15,26.32432314]
[1750069117673,32.24724485,157.16,157.15,32.68767026]
[1750069118489,26.0,157.16,157.15,32.68767026]
[1750069118677,6.24724485,157.16,157.15,32.68767026]
[1750069118990,3.99407694,157.16,157.15,32.68767026]
[1750069123272,7.52777326,157.17,157.15,32.68767026]
[1750069123568,3.99407694,157.16,157.15,32.68767026]
[1750069127069,3.99407694,157.16,157.15,32.40334712]
[1750069130915,7.52777326,157.17,157.15,32.68767026]
[1750069131073,3.99407694,157.16,157.15,32.68767026]
[1750069131577,7.52777326,157.17,157.15,32.68767026]
[1750069131886,3.99407694,157.16,157.15,32.68767026]
[1750069141923,3.99407694,157.16,157.15,6.36334712]
[1750069142127,3.99407694,157.16,157.15,32.36334712]
[1750069142406,3.99407694,157.16,157.15,6.36334712]
[1750069142716,3.99407694,157.16,157.15,32.36334712]
[1750069143092,3.99407694,157.16,157.15,26.0]
[1750069143617,3.99407694,157.16,157.15,32.36334712]
[1750069145090,3.99407694,157.16,157.15,6.36334712]
[1750069145316,3.99407694,157.16,157.15,32.38334712]
[1750069147013,3.99407694,157.16,157.15,6.36334712]
[1750069147223,3.99407694,157.16,157.15,32.38334712]
[1750069148405,0.1036368,157.17,157.15,32.38334712]
[1750069148617,3.99407694,157.16,157.15,32.66767026]
[1750069149442,3.99407694,157.16,157.15,32.38334712]
[1750069155836,0.1036368,157.17,157.15,32.38334712]
[1750069156011,3.99407694,157.16,157.15,32.38334712]
[1750069156431,3.99407694,157.16,157.15,6.36334712]
[1750069156622,3.99407694,157.16,157.15,32.44334712]
[1750069157044,0.1036368,157.17,157.15,32.44334712]
[1750069157260,3.99407694,157.16,157.15,32.44334712]
[1750069157940,0.1036368,157.17,157.15,32.44334712]
[1750069158125,3.99407694,157.16,157.15,32.44334712]
[1750069163543,0.1036368,157.17,157.15,32.44334712]
[1750069163721,3.99407694,157.16,157.15,32.44334712]
[1750069164536,3.99407694,157.16,157.15,32.42334712]
[1750069167046,0.1036368,157.17,157.15,32.42334712]
[1750069167344,3.99407694,157.16,157.15,32.42334712]
[1750069177243,3.99407694,157.16,157.15,32.42334712]
[1750069194787,3.99407694,157.16,157.15,26.06]
[1750069195683,3.99407694,157.16,157.14,243.11171832]
[1750069195984,3.99407694,157.15,157.14,236.74807453]
[1750069196187,3.99407694,157.15,157.14,262.76807453]
[1750069199081,3.99407694,157.15,157.14,236.74807453]
[1750069199286,3.99407694,157.15,157.14,262.76807453]
[1750069199983,3.99407694,157.15,157.14,236.74807453]
[1750069200297,3.99407694,157.15,157.14,262.76807453]
[1750069200669,29.99407694,157.15,157.14,262.76807453]
[1750069201381,34.76482908,157.15,157.14,262.76807453]
[1750069202088,29.99407694,157.15,157.14,262.76807453]
[1750069204290,26.0,157.15,157.14,262.76807453]
[1750069204465,29.99407694,157.15,157.14,262.76807453]
[1750069204865,29.99407694,157.15,157.14,236.74807453]
[1750069205066,29.99407694,157.15,157.14,262.76807453]
[1750069205274,3.99407694,157.15,157.14,236.74807453]
[1750069205467,8.76391891,157.15,157.14,236.74807453]
[1750069205777,3.99407694,157.15,157.14,262.76807453]
[1750069206388,8.76346447,157.15,157.14,262.76807453]
[1750069206585,3.99407694,157.15,157.14,262.76807453]
[1750069207388,8.76290096,157.15,157.14,262.76807453]
[1750069207589,3.99407694,157.15,157.14,262.76807453]
[1750069207792,45.9703847,157.15,157.14,192.09011656]
[1750069207997,29.99407694,157.15,157.14,192.09011656]
[1750069208166,176.99407694,157.15,157.14,166.07011656]
[1750069208365,176.99407694,157.15,157.14,67.96423312]
[1750069208593,176.99407694,157.15,157.12,61.29050321]
[1750069208890,3.99407694,157.13,157.12,61.29050321]
[1750069216397,173.0,157.15,157.12,61.29050321]
[1750069216691,3.99407694,157.13,157.12,61.29050321]
[1750069216898,10.99159425,157.13,157.12,61.29050321]
[1750069219284,3.99407694,157.13,157.12,61.29050321]
[1750069223297,173.0,157.15,157.12,67.65506532]
[1750069223506,147.0,157.15,157.14,6.36375206]
[1750069223810,36.7335133,157.15,157.14,6.36375206]
[1750069237000,29.99407694,157.15,157.14,6.36375206]
[1750069238287,26.0,157.15,157.14,6.36375206]
[1750069238491,3.99407694,157.15,157.14,6.6480752]
[1750069238687,29.99407694,157.16,157.14,6.6480752]
[1750069238893,3.99407694,157.15,157.14,6.6480752]
[1750069241214,26.0,157.16,157.14,6.6480752]
[1750069241594,3.99407694,157.15,157.14,6.6480752]
[1750069242308,29.99407694,157.15,157.14,6.6480752]
[1750069246033,26.0,157.15,157.14,6.6480752]
[1750069246212,29.99407694,157.15,157.14,6.6480752]
[1750069248213,29.99407694,157.15,157.14,6.36375206]
[1750069248844,29.99407694,157.15,157.13,6.6484802]
[1750069249141,3.99407694,157.14,157.13,6.6484802]
[1750069253282,0.1036368,157.17,157.14,18.933972]
[1750069253477,3.99407694,157.16,157.15,26.30432314]
[1750069253851,29.99407694,157.16,157.12,67.65493388]
[1750069254068,3.99407694,157.13,157.12,67.65493388]
[1750069256378,3.99407694,157.13,157.12,61.29050321]
[1750069256878,3.99407694,157.13,157.12,67.65506532]
[1750069257058,3.99407694,157.13,157.12,61.29050321]
[1750069257785,19.9703847,157.13,157.12,61.29050321]
[1750069257974,21.5391847,157.13,157.12,61.29050321]
[1750069258180,21.5391847,157.13,157.12,51.7861032]
[1750069258678,26.0,157.11,157.1,6.365246]
[1750069258879,29.99407694,157.11,157.1,6.365246]
[1750069271475,26.0,157.1,157.09,250.0]
[1750069271786,29.99407694,157.1,157.09,248.05939368]
[1750069272779,37.24559862,157.1,157.09,248.05939368]
[1750069278483,42.30473707,157.1,157.09,248.05939368]
[1750069285005,42.30473707,157.1,157.09,228.05939368]
[1750069285502,42.30473707,157.1,157.09,222.05939368]
[1750069286082,37.24559862,157.1,157.09,222.05939368]
[1750069286306,33.25152168,157.1,157.09,222.05939368]
[1750069286511,37.24559862,157.1,157.09,222.05939368]
[1750069287005,37.24559862,157.1,157.09,247.07482011]
[1750069287006,7.25152168,157.1,157.09,247.07482011]
[1750069287223,3.99407694,157.13,157.1,0.28432314]
[1750069287412,3.99407694,157.13,157.11,26.02]
[1750069287613,26.0,157.12,157.11,32.38496722]
[1750069292419,7.67241018,157.14,157.12,18.64964886]
[1750069292628,7.67241018,157.14,157.13,51.17715883]
[1750069293127,0.1036368,157.17,157.14,0.28432314]
[1750069293326,0.1036368,157.17,157.16,6.36294222]
[1750069295236,6.34682363,157.17,157.16,6.36294222]
[1750069297946,6.34682363,157.17,157.15,6.36334712]
[1750069298122,6.24318683,157.16,157.15,6.36334712]
[1750069301117,6.24318683,157.16,157.13,32.6484802]
[1750069306448,6.24318683,157.15,157.13,32.6484802]
[1750069307244,6.24318683,157.14,157.13,32.6484802]
[1750069308242,32.24318683,157.15,157.13,32.6484802]
[1750069312855,29.99458561,157.15,157.13,32.6484802]
[1750069313957,29.99458561,157.15,157.13,6.6484802]
[1750069314141,29.99458561,157.15,157.13,32.6484802]
[1750069314753,3.99458561,157.14,157.13,32.6484802]
[1750069320066,29.99458561,157.15,157.13,32.6484802]
[1750069320560,0.1036368,157.17,157.15,0.28432314]
[1750069320739,0.1036368,157.17,157.16,26.26432314]
[1750069321539,4.09822241,157.17,157.16,26.26432314]
[1750069322267,4.09822241,157.17,157.16,32.62726536]
[1750069324875,0.1036368,157.17,157.16,32.62726536]
[1750069325058,0.1036368,157.17,157.16,51.27691422]
[1750069329179,26.1036368,157.17,157.16,51.27691422]
[1750069331081,26.1036368,157.17,157.16,32.62726536]
[1750069331082,30.09822241,157.17,157.16,32.62726536]
[1750069331256,26.1036368,157.17,157.16,51.27691422]
[1750069331784,0.1036368,157.17,157.16,51.27691422]
[1750069335597,4.09822241,157.17,157.16,51.27691422]
[1750069335800,4.09822241,157.17,157.16,32.48510379]
[1750069335972,4.09822241,157.17,157.16,32.62726536]
[1750069336580,4.09822241,157.17,157.14,6.36375206]
[1750069336787,3.99458561,157.15,157.14,32.34375206]
[1750069337315,3.99458561,157.15,157.14,32.6280752]
[1750069337502,3.99458561,157.15,157.14,6.6480752]
[1750069337807,3.99458561,157.15,157.14,32.6280752]
[1750069339712,3.99458561,157.16,157.14,48.53745537]
[1750069339913,4.09822241,157.17,157.15,18.933972]
[1750069341586,4.09822241,157.17,157.16,6.36294222]
[1750069342813,6.34440734,157.17,157.16,6.36294222]
[1750069343919,6.34440734,157.17,157.15,6.64767026]
[1750069344222,6.24077054,157.16,157.15,6.64767026]
[1750069347419,26.1036368,157.17,157.15,6.64767026]
[1750069347618,6.24077054,157.16,157.15,6.64767026]
[1750069347919,0.1036368,157.17,157.16,18.933972]
[1750069348217,0.1036368,157.17,157.16,6.64726536]
[1750069348418,0.1036368,157.17,157.16,25.29691422]
[1750069349509,6.34440734,157.17,157.16,25.29691422]
[1750069355127,0.1036368,157.17,157.16,25.29691422]
[1750069358129,0.1036368,157.17,157.16,30.85691422]
[1750069364838,26.1036368,157.17,157.16,30.85691422]
[1750069365218,0.1036368,157.17,157.16,34.84944055]
[1750069367147,0.1036368,157.17,157.16,30.85691422]
[1750069367447,4.09616313,157.17,157.16,56.81691422]
[1750069367833,4.09616313,157.17,157.16,56.53259108]
[1750069368341,0.1036368,157.17,157.16,56.67475265]
[1750069368646,0.1036368,157.17,157.16,56.81691422]
[1750069370424,4.09616313,157.17,157.16,56.81691422]
[1750069370949,6.34318223,157.17,157.16,56.81691422]
[1750069376750,6.34318223,157.17,157.16,30.85691422]
[1750069377053,6.34318223,157.17,157.16,56.81691422]
[1750069377456,6.34318223,157.17,157.16,51.25691422]
[1750069381875,6.34318223,157.17,157.16,6.64726536]
[1750069382167,32.34318223,157.17,157.16,6.36294222]
[1750069382366,32.34318223,157.17,157.16,6.64726536]
[1750069386587,32.34318223,157.17,157.15,6.36334712]
[1750069386797,6.23954543,157.16,157.09,222.05939368]
[1750069387000,6.23954543,157.1,157.09,228.4250422]
[1750069387366,32.23954543,157.1,157.09,228.70936534]
[1750069387566,32.23954543,157.1,157.09,222.34371682]
[1750069387767,32.23954543,157.1,157.09,222.05939368]
[1750069388190,32.23954543,157.1,157.09,222.34371682]
[1750069388574,32.23954543,157.1,157.09,228.70949439]
[1750069388797,32.23954543,157.1,157.09,228.42517125]
[1750069388965,32.23954543,157.1,157.09,228.70949439]
[1750069392008,32.23954543,157.1,157.04,250.0]
[1750069392009,26.0,157.08,157.04,250.0]
[1750069392304,12.47909086,157.05,157.04,90.04791152]
[1750069392490,14.07029086,157.05,157.04,6.48080344]
[1750069396507,17.29504098,157.05,157.04,6.48080344]
[1750069397404,6.0215,157.06,157.05,0.28432314]
[1750069397405,6.23954543,157.06,157.05,0.28432314]
[1750069398092,26.0,157.07,157.05,0.28432314]
[1750069398284,6.23954543,157.06,157.05,0.28432314]
[1750069399286,6.23954543,157.06,157.05,6.65172205]
[1750069403845,6.23954543,157.06,157.05,6.36739891]
[1750069405737,6.23954543,157.06,157.05,6.65172205]
[1750069413632,26.0,157.06,157.05,6.65172205]
[1750069413834,32.23954543,157.06,157.05,6.65172205]
[1750069414154,6.23954543,157.07,157.06,0.28432314]
[1750069414540,32.23954543,157.07,157.06,0.28432314]
[1750069415552,26.0,157.07,157.06,0.28432314]
[1750069415853,32.23954543,157.07,157.06,6.65131664]
[1750069419351,6.23954543,157.08,157.07,18.933972]
[1750069420053,6.23954543,157.08,157.07,25.30056014]
[1750069420358,6.23954543,157.08,157.07,6.65091128]
[1750069429056,6.91214615,157.1,157.08,6.65050597]
[1750069429245,6.23954543,157.09,157.08,6.65050597]
[1750069429967,6.91214615,157.1,157.08,6.65050597]
[1750069431059,32.23954543,157.09,157.08,6.65050597]
[1750069432868,29.99792375,157.09,157.08,6.65050597]
[1750069445356,26.0,157.09,157.08,6.65050597]
[1750069445555,29.99792375,157.09,157.08,6.65050597]
[1750069447057,26.0,157.09,157.08,25.30015483]
[1750069447262,6.91214615,157.1,157.09,18.933972]
[1750069447656,10.9100699,157.1,157.09,18.933972]
[1750069447869,10.9100699,157.1,157.09,25.29974957]
[1750069452069,6.91214615,157.1,157.09,25.29974957]
[1750069452384,21.62750752,157.11,157.09,25.29974957]
[1750069452678,3.99792375,157.13,157.09,25.29974957]
[1750069452679,3.99792375,157.15,157.1,22.93189575]
[1750069452883,3.99792375,157.15,157.12,0.28432314]
[1750069453065,29.99792375,157.15,157.12,0.28432314]
[1750069454095,29.99792375,157.15,157.14,18.933972]
[1750069454687,26.0,157.15,157.14,18.933972]
[1750069454864,32.24074214,157.15,157.14,18.933972]
[1750069455070,32.24074214,157.15,157.14,6.6480752]
[1750069455287,26.0,157.15,157.14,6.6480752]
[1750069455478,32.24074214,157.15,157.14,6.6480752]
[1750069460388,32.24074214,157.15,157.13,6.36400069]
[1750069460686,26.0,157.13,157.12,5.54]
[1750069460880,32.24074214,157.13,157.12,5.54]
[1750069461877,32.24074214,157.13,157.11,6.36490572]
[1750069462076,6.24074214,157.12,157.11,6.36490572]
[1750069462910,26.0,157.1,157.09,25.29974957]
[1750069463076,32.24074214,157.1,157.09,25.29974957]
[1750069465607,6.24074214,157.1,157.09,25.29974957]
[1750069468881,32.24074214,157.11,157.09,25.29974957]
[1750069469607,26.0,157.11,157.09,25.29974957]
[1750069469825,6.24074214,157.14,157.11,18.933972]
[1750069469985,6.24074214,157.14,157.1,18.933972]
[1750069470368,32.24074214,157.14,157.1,18.933972]
[1750069470572,32.24074214,157.14,157.1,44.873972]
[1750069471111,32.24074214,157.14,157.12,0.28432314]
[1750069471695,6.24074214,157.13,157.12,0.28432314]
[1750069474116,32.43284125,157.14,157.12,6.64888525]
[1750069474427,32.43284125,157.14,157.13,18.933972]
[1750069475516,32.43284125,157.14,157.13,25.29812906]
[1750069475928,36.42708951,157.14,157.13,25.29812906]
[1750069480319,32.43284125,157.14,157.13,25.29812906]
[1750069481406,36.42708951,157.14,157.13,25.29812906]
[1750069482507,29.99424826,157.14,157.13,25.29812906]
[1750069482907,26.0,157.14,157.13,25.29812906]
[1750069484717,26.0,157.15,157.14,0.28432314]
[1750069486626,26.0,157.15,157.14,25.29772406]
[1750069488422,26.0,157.16,157.15,25.29731912]
[1750069488931,29.99424826,157.16,157.15,25.29731912]
[1750069489513,26.0,157.16,157.15,25.29731912]
[1750069493540,29.99424826,157.16,157.15,25.29731912]
[1750069496147,29.99424826,157.16,157.15,6.64767026]
[1750069496828,3.99424826,157.16,157.15,6.64767026]
[1750069498156,3.99424826,157.16,157.05,31.83563375]
[1750069498445,26.0,157.15,157.1,18.64964886]
[1750069498637,3.99424826,157.13,157.11,0.28432314]
[1750069500140,3.99424826,157.13,157.12,6.64888525]
[1750069513850,26.0,157.14,157.13,0.28432314]
[1750069514954,29.99424826,157.14,157.13,0.28432314]
[1750069515145,29.99424826,157.14,157.13,6.6484802]
[1750069525358,26.0,157.16,157.13,6.6484802]
[1750069525562,29.99424826,157.15,157.14,18.933972]
[1750069528359,29.99424826,157.15,157.14,25.29772406]
[1750069535644,29.99424826,157.15,157.14,6.36375206]
[1750069535844,26.0,157.14,157.13,0.28432314]
[1750069536054,29.99424826,157.14,157.13,0.28432314]
[1750069537665,29.99424826,157.14,157.13,6.6484802]
[1750069542549,26.0,157.14,157.13,25.29812906]
[1750069542879,3.99424826,157.15,157.13,25.29812906]
[1750069549674,3.99424826,157.15,157.14,25.29772406]
[1750069552479,26.0,157.16,157.15,0.28432314]
[1750069552654,29.99424826,157.16,157.15,0.28432314]
[1750069554581,29.99424826,157.16,157.15,6.64767026]
[1750069560790,29.99424826,157.16,157.13,6.36415706]
[1750069561088,3.99424826,157.14,157.13,6.6484802]
[1750069561265,29.99424826,157.14,157.13,6.6484802]
[1750069561588,29.99424826,157.14,157.13,6.50631863]
[1750069561799,29.99424826,157.14,157.13,6.6484802]
[1750069563272,29.99424826,157.14,157.11,5.52]
[1750069563590,47.4776413,157.12,157.04,12.00080344]
[1750069563799,3.99424826,157.05,157.04,18.36860782]
[1750069564292,3.99424826,157.05,157.04,12.00080344]
[1750069564789,3.99424826,157.05,157.04,18.36860782]
[1750069565668,3.99424826,157.05,157.04,37.30257982]
[1750069566187,26.0,157.08,157.05,0.28432314]
[1750069566388,3.99424826,157.06,157.05,6.65172205]
[1750069566889,32.24919447,157.06,157.05,6.65172205]
[1750069567386,26.0,157.06,157.05,6.65172205]
[1750069567691,32.24919447,157.06,157.05,6.65172205]
[1750069571392,32.24919447,157.06,157.05,6.36739891]
[1750069571870,32.24919447,157.06,157.04,18.3684708]
[1750069572071,6.24919447,157.05,157.04,18.3684708]
[1750069573885,32.24919447,157.05,157.04,18.3684708]
[1750069574400,32.24919447,157.05,157.04,18.65279394]
[1750069581979,32.24919447,157.05,157.04,18.3684708]
[1750069582595,32.24919447,157.05,157.04,12.00080344]
[1750069582793,6.24919447,157.05,157.04,12.00080344]
[1750069583507,32.24919447,157.05,157.04,12.00080344]
[1750069584002,32.24919447,157.05,157.04,18.36860782]
[1750069588807,3.99940819,157.05,157.04,18.65293096]
[1750069590989,6.24949633,157.05,157.04,18.65293096]
[1750069593713,26.0,157.07,157.04,18.65293096]
[1750069593921,6.24949633,157.05,157.04,18.65293096]
[1750069594994,6.24949633,157.05,157.04,37.30257982]
[1750069595204,6.24949633,157.06,157.05,0.28432314]
[1750069596991,6.24949633,157.06,157.05,6.65172205]
[1750069602501,6.24949633,157.06,157.05,6.36739891]
[1750069608225,6.24949633,157.06,157.04,12.84848128]
[1750069608410,6.24949633,157.05,157.04,12.84848128]
[1750069608728,6.24949633,157.05,157.04,6.48080344]
[1750069611625,26.0,157.05,157.04,6.48080344]
[1750069611922,32.24949633,157.05,157.04,6.48080344]
[1750069612804,46.0115529,157.05,157.04,6.48080344]
[1750069614216,52.37895181,157.05,157.04,6.48080344]
[1750069614611,57.14844056,157.05,157.04,6.48080344]
[1750069614819,49.64379978,157.05,157.04,6.48080344]
[1750069616232,43.27640087,157.05,157.04,6.48080344]
[1750069616410,38.50691212,157.05,157.04,6.48080344]
[1750069620332,26.0,157.05,157.04,6.48080344]
[1750069620633,6.25345606,157.05,157.04,12.84860782]
[1750069621927,26.0,157.06,157.04,12.84860782]
[1750069622130,6.25345606,157.05,157.04,12.84860782]
[1750069623706,6.25345606,157.05,157.04,13.13293096]
[1750069634023,26.0,157.07,157.04,29.05244191]
[1750069634350,6.25345606,157.05,157.04,29.05244191]
[1750069634853,3.99960323,157.05,157.04,29.05244191]
[1750069637748,26.0,157.07,157.04,29.05244191]
[1750069637933,3.99960323,157.05,157.04,29.05244191]
[1750069641546,3.99960323,157.05,157.04,13.13293096]
[1750069649154,3.99960323,157.05,157.04,12.84860782]
[1750069649522,29.99960323,157.05,157.04,6.48080344]
[1750069650456,45.99801615,157.05,157.04,6.48080344]
[1750069650658,47.60551615,157.05,157.04,6.48080344]
[1750069654570,29.99960323,157.05,157.04,6.48080344]
[1750069656758,3.99960323,157.05,157.04,12.84860782]
[1750069656972,26.0,157.07,157.04,12.84860782]
[1750069657265,3.99960323,157.05,157.04,13.13293096]
[1750069687168,26.0,157.07,157.04,13.13293096]
[1750069687382,3.99960323,157.06,157.05,0.28432314]
[1750069687879,26.0,157.07,157.05,18.933972]
[1750069688080,29.99960323,157.07,157.05,18.933972]
[1750069688280,26.0,157.07,157.05,18.933972]
[1750069689492,26.0,157.07,157.06,25.3009655]
[1750069692097,29.99960323,157.08,157.07,0.28432314]
[1750069693893,29.99960323,157.08,157.07,6.65091128]
[1750069696178,26.0,157.08,157.07,6.65091128]
[1750069696386,29.99960323,157.08,157.07,6.65091128]
[1750069698898,26.0,157.08,157.07,25.30056014]
[1750069704284,3.99960323,157.08,157.07,25.30056014]
[1750069705708,26.0,157.1,157.08,18.933972]
[1750069705892,3.99960323,157.09,157.08,18.933972]
[1750069706904,3.99960323,157.09,157.08,25.30015483]
[1750069711398,29.99960323,157.09,157.08,25.30015483]
[1750069711603,26.0,157.09,157.08,25.30015483]
[1750069711800,29.99960323,157.09,157.08,25.30015483]
[1750069711990,26.0,157.09,157.08,25.30015483]
[1750069712590,6.81759769,157.11,157.09,18.933972]
[1750069713499,6.81759769,157.11,157.1,25.29934437]
[1750069714210,6.81759769,157.11,157.1,51.19934437]
[1750069718001,10.81720092,157.11,157.1,51.19934437]
[1750069718390,10.81720092,157.11,157.1,25.29934437]
[1750069718787,6.81759769,157.11,157.1,25.29934437]
[1750069720118,10.81720092,157.11,157.1,6.36537237]
[1750069721505,10.81720092,157.11,157.09,0.28432314]
[1750069721921,3.99960323,157.1,157.09,0.28432314]
[1750069722413,3.99960323,157.1,157.09,6.65010071]
[1750069731232,6.81759769,157.11,157.09,6.65010071]
[1750069731537,3.99960323,157.1,157.09,6.65010071]
[1750069732225,10.81720092,157.11,157.09,6.65010071]
[1750069732430,10.81720092,157.11,157.09,25.29974957]
[1750069737318,3.99960323,157.1,157.09,25.29974957]
[1750069742546,3.99960323,157.1,157.09,6.65010071]
[1750069742834,26.0,157.08,157.07,11.88658814]
[1750069743011,29.99960323,157.08,157.07,11.88658814]
[1750069743728,34.76799748,157.08,157.07,11.88658814]
[1750069743936,29.99960323,157.08,157.07,11.88658814]
[1750069745219,26.0,157.08,157.07,11.88658814]
[1750069745543,29.99960323,157.08,157.07,11.88658814]
[1750069749135,29.99960323,157.08,157.05,15.91843392]
[1750069749136,29.99960323,157.08,157.06,0.28432314]
[1750069749336,3.99960323,157.07,157.06,0.28432314]
[1750069751055,10.57170906,157.07,157.06,0.28432314]
[1750069751235,10.57170906,157.07,157.06,6.65131664]
[1750069751756,3.99960323,157.07,157.06,6.65131664]
[1750069757848,3.99960323,157.07,157.06,6.3669935]
[1750069758064,3.99960323,157.07,157.05,6.36739891]
[1750069758269,3.99960323,157.06,157.05,6.36739891]
[1750069758443,10.38057153,157.06,157.05,6.36739891]
[1750069758979,36.38057153,157.06,157.04,6.48080344]
[1750069759162,45.99801615,157.05,157.04,6.48080344]
[1750069759761,29.99960323,157.05,157.04,6.48080344]
[1750069762057,50.7546161,157.05,157.04,6.48080344]
[1750069763067,45.99801615,157.05,157.04,6.48080344]
[1750069769780,29.99960323,157.05,157.04,6.48080344]
[1750069772283,29.99960323,157.05,157.04,12.84860782]
[1750069778780,3.99960323,157.05,157.04,12.84860782]
[1750069779189,29.99960323,157.05,157.04,12.84860782]
[1750069779688,26.0,157.05,157.04,13.13293096]
[1750069779874,29.99960323,157.05,157.04,13.13293096]
[1750069780985,26.0,157.05,157.04,31.78257982]
[1750069785871,26.0,157.09,157.05,18.933972]
[1750069786292,3.99960323,157.06,157.05,18.933972]
[1750069786881,3.99960323,157.06,157.05,25.30137091]
[1750069790383,3.99960323,157.06,157.05,6.36739891]
[1750069801624,3.99960323,157.06,157.05,6.65172205]
[1750069811741,3.99960323,157.06,157.05,25.30137091]
[1750069813410,6.24307733,157.07,157.06,0.28432314]
[1750069813615,10.24268056,157.07,157.06,6.65131664]
[1750069814095,27.579,157.05,157.04,6.48080344]
[1750069814297,36.34522892,157.05,157.02,43.0]
[1750069814624,3.99960323,157.03,157.02,43.0]
[1750069815017,34.76745707,157.03,157.02,43.0]
[1750069815409,30.76785384,157.03,157.02,43.0]
[1750069815608,34.76745707,157.03,157.02,43.0]
[1750069816218,29.99960323,157.03,157.02,49.36861546]
[1750069816915,29.99960323,157.03,157.02,43.0]
[1750069817522,29.99960323,157.03,157.02,49.36861546]
[1750069822325,26.0,157.03,157.02,49.6529386]
[1750069822518,29.99960323,157.03,157.02,49.6529386]
[1750069823317,29.99960323,157.03,157.02,49.36861546]
[1750069841842,29.99960323,157.03,157.02,43.0]
[1750069842023,34.76486266,157.03,157.02,43.0]
[1750069842346,8.76486266,157.03,157.02,43.0]
[1750069842528,34.76486266,157.03,157.02,43.0]
[1750069845743,8.76486266,157.03,157.02,43.0]
[1750069845934,15.13307255,157.03,157.02,43.0]
[1750069846256,26.0,157.0,156.97,5.5]
[1750069846541,3.99960323,156.98,156.97,12.01272099]
[1750069846847,29.99960323,156.98,156.97,12.15488256]
[1750069848149,26.0,156.98,156.97,5.5]
[1750069848332,29.99960323,156.98,156.97,5.5]
[1750069850453,3.99960323,156.98,156.97,5.5]
[1750069850643,29.99960323,156.98,156.97,5.5]
[1750069852761,29.99960323,156.98,156.96,36.38814047]
[1750069852944,29.99960323,156.97,156.96,36.38814047]
[1750069855143,26.0,156.97,156.96,42.75919041]
[1750069855355,29.99960323,156.97,156.96,42.75919041]
[1750069855948,29.99960323,156.97,156.96,36.38814047]
[1750069861073,26.0,156.96,156.95,2.59596775]
[1750069861238,29.99960323,156.96,156.95,2.59596775]
[1750069861854,45.99801615,156.96,156.95,2.59596775]
[1750069863757,45.99801615,156.96,156.95,2.88029089]
[1750069864066,3.99960323,156.97,156.96,0.28432314]
[1750069864660,29.99960323,156.97,156.96,0.28432314]
[1750069864946,29.99960323,156.97,156.95,8.96742362]
[1750069865246,3.99960323,156.96,156.95,9.25174676]
[1750069869071,3.99960323,156.96,156.95,8.96742362]
[1750069871452,26.0,156.97,156.95,8.96742362]
[1750069871652,3.99960323,156.96,156.95,8.96742362]
[1750069879456,19.99801615,156.96,156.95,2.59596775]
[1750069879660,26.0,156.93,156.86,31.38]
[1750069879871,3.99960323,156.9,156.88,18.64964886]
[1750069880573,3.99960323,156.9,156.89,34.58338684]
[1750069880772,3.99960323,156.9,156.89,34.86770998]
[1750069881676,3.99960323,156.9,156.89,41.24160251]
[1750069886370,3.99960323,156.9,156.89,25.30786453]
[1750069887982,27.6201,156.95,156.9,0.28432314]
[1750069888165,3.99960323,156.91,156.9,0.28432314]
[1750069889681,29.99960323,156.91,156.9,6.65780943]
[1750069890367,3.99960323,156.91,156.9,22.59152517]
[1750069890684,3.99960323,156.91,156.9,67.12117403]
[1750069892091,26.0,156.93,156.9,67.12117403]
[1750069892295,3.99960323,156.91,156.9,67.12117403]
[1750069899908,3.99960323,156.91,156.9,32.25348629]
[1750069900229,29.99960323,156.91,156.89,6.37371806]
[1750069900407,3.99960323,156.9,156.89,6.37371806]
[1750069901695,3.99960323,156.9,156.88,6.65862196]
[1750069901905,3.99960323,156.89,156.88,6.65862196]
[1750069902087,3.99960323,156.89,156.88,32.53862196]
[1750069902982,3.99960323,156.89,156.88,6.65862196]
[1750069908012,3.99960323,156.89,156.88,41.24401788]
[1750069913205,3.99960323,156.9,156.88,41.24401788]
[1750069913520,3.99960323,156.9,156.89,26.16432314]
[1750069913825,3.99960323,156.9,156.89,0.28432314]
[1750069915231,3.99960323,156.9,156.89,6.65821567]
[1750069915603,26.0,156.92,156.9,0.28432314]